bitfinex/quotes_SOLUSD_20251031
["timestamp","ask_amount","ask_price","bid_price","bid_amount"]
[1761916742167,20.592,187.37,187.35,5.3375753]
[1761916742368,0.2,187.39,187.36,6.10135107]
[1761916742570,20.792,187.39,187.38,5.44135107]
[1761916742769,4.1124743,187.39,187.38,5.44135107]
[1761916742976,0.2,187.39,187.38,6.38567421]
[1761916743570,0.2,187.39,187.38,11.72242306]
[1761916746388,0.2,187.39,187.38,11.06242306]
[1761916747389,0.2,187.39,187.38,10.77809992]
[1761916747583,0.88,187.39,187.36,5.33731853]
[1761916748083,0.2,187.39,187.36,5.33731853]
[1761916748287,0.88,187.39,187.36,5.33731853]
[1761916748785,0.68,187.38,187.35,5.33760341]
[1761916749687,1.31473076,187.38,187.32,5.44135107]
[1761916749890,6.75608183,187.38,187.33,5.44135107]
[1761916750089,0.68,187.37,187.32,5.44135107]
[1761916750478,6.12135107,187.37,187.32,5.44135107]
[1761916750988,0.68,187.36,187.33,5.33817327]
[1761916753372,6.07608183,187.38,187.33,5.33817327]
[1761916753582,0.68,187.37,187.33,5.33817327]
[1761916754396,20.592,187.38,187.35,5.33760341]
[1761916754596,21.272,187.38,187.35,5.33760341]
[1761916754895,0.2,187.39,187.35,11.43895448]
[1761916755597,6.95608183,187.39,187.35,5.33760341]
[1761916755792,5.44135107,187.38,187.35,5.33760341]
[1761916755980,0.68,187.37,187.35,5.33760341]
[1761916756486,6.12135107,187.37,187.33,5.33817327]
[1761916756678,0.68,187.36,187.33,5.33817327]
[1761916757080,6.12135107,187.36,187.31,5.62306639]
[1761916757379,6.12135107,187.36,187.31,24.4112756]
[1761916757585,0.68,187.35,187.31,24.4112756]
[1761916757998,0.68,187.35,187.31,5.62306639]
[1761916758678,5.44135107,187.36,187.31,6.28306639]
[1761916758878,6.12135107,187.36,187.31,11.72441746]
[1761916759087,5.44135107,187.36,187.31,11.72441746]
[1761916759286,0.68,187.35,187.31,8.42098665]
[1761916759485,2.81792026,187.35,187.3,18.68647284]
[1761916759707,0.68,187.34,187.3,18.68647284]
[1761916759888,2.81792026,187.34,187.3,18.68647284]
[1761916760202,2.81792026,187.34,187.3,5.33902829]
[1761916760408,2.77265102,187.36,187.31,0.66]
[1761916760710,2.81792026,187.35,187.3,18.68659903]
[1761916761297,0.68,187.34,187.3,18.68659903]
[1761916762412,20.592,187.38,187.33,2.13792026]
[1761916762713,3.91755196,187.37,187.34,2.13792026]
[1761916762914,3.91755196,187.37,187.35,2.13792026]
[1761916763273,21.472,187.39,187.35,2.13792026]
[1761916763784,20.792,187.39,187.36,5.33731853]
[1761916763992,0.2,187.39,187.36,8.14523879]
[1761916764192,4.11856144,187.39,187.36,8.14523879]
[1761916764386,0.2,187.39,187.37,2.80792026]
[1761916764585,0.2,187.39,187.37,2.13792026]
[1761916764787,0.2,187.39,187.36,20.81853511]
[1761916765101,0.2,187.39,187.36,21.48853511]
[1761916765502,0.2,187.39,187.36,8.14523879]
[1761916766007,0.2,187.39,187.36,6.00731853]
[1761916766209,0.2,187.39,187.36,8.14523879]
[1761916766913,0.2,187.39,187.38,5.33674885]
[1761916767420,0.2,187.39,187.38,8.14466911]
[1761916768001,0.2,187.39,187.38,7.47466911]
[1761916768525,0.2,187.39,187.37,5.33703367]
[1761916768688,0.88,187.39,187.37,5.33703367]
[1761916769482,0.2,187.39,187.37,5.33703367]
[1761916769691,0.2,187.39,187.37,7.47495393]
[1761916770107,0.2,187.41,187.38,0.95432314]
[1761916770406,0.2,187.41,187.4,12.21107109]
[1761916770713,3.91892338,187.47,187.45,2.13792026]
[1761916770886,0.83473076,187.53,187.45,3.0922434]
[1761916771085,3.91846775,187.52,187.47,0.28432314]
[1761916771294,3.91846775,187.51,187.5,2.13792026]
[1761916771595,3.91846775,187.51,187.47,1.48774182]
[1761916771596,3.91846775,187.51,187.49,2.13792026]
[1761916771795,0.71,187.52,187.49,2.13792026]
[1761916772290,0.71,187.52,187.48,2.80792026]
[1761916772518,0.71,187.52,187.49,5.33361779]
[1761916772903,4.62652878,187.52,187.49,5.33361779]
[1761916773687,0.71,187.52,187.48,5.33390184]
[1761916774005,9.54609311,187.53,187.48,6.00390184]
[1761916774201,0.71,187.52,187.48,6.00390184]
[1761916774796,4.11132264,187.53,187.48,11.43796036]
[1761916775005,4.82132264,187.53,187.48,11.43796036]
[1761916775908,9.54538116,187.53,187.48,6.00390184]
[1761916776109,0.2,187.53,187.49,6.38838166]
[1761916776413,0.2,187.53,187.5,5.43405852]
[1761916776713,0.2,187.53,187.5,0.67]
[1761916777089,0.71,187.52,187.48,5.33390184]
[1761916777295,5.43405852,187.51,187.47,5.61850672]
[1761916777515,0.71,187.5,187.47,5.61850672]
[1761916778608,5.43405852,187.51,187.47,5.61850672]
[1761916778814,6.14405852,187.51,187.47,5.61850672]
[1761916779211,5.43405852,187.51,187.47,5.61850672]
[1761916779415,0.71,187.5,187.47,5.61850672]
[1761916779605,0.71,187.5,187.46,5.33447135]
[1761916780203,0.2,187.53,187.49,8.40041317]
[1761916780809,0.2,187.53,187.49,9.07041317]
[1761916781012,0.2,187.53,187.5,0.67]
[1761916781190,0.2,187.53,187.51,0.14216157]
[1761916781396,0.2,187.53,187.51,8.40041317]
[1761916781615,0.2,187.53,187.52,5.3327645]
[1761916783913,0.91,187.53,187.5,5.33329591]
[1761916785797,0.2,187.53,187.5,5.33329591]
[1761916786304,0.91,187.53,187.5,5.33329591]
[1761916787105,8.9682516,187.52,187.49,5.33358322]
[1761916787621,0.71,187.52,187.49,5.33358322]
[1761916788016,0.71,187.52,187.48,5.33390228]
[1761916788210,0.71,187.52,187.48,19.62298112]
[1761916788596,8.2582516,187.51,187.48,5.33390228]
[1761916788791,8.9682516,187.52,187.48,5.33390228]
[1761916789198,0.71,187.51,187.48,5.33390228]
[1761916790118,0.71,187.51,187.47,5.3341868]
[1761916790724,8.9682516,187.51,187.47,5.3341868]
[1761916792622,0.71,187.5,187.47,5.3341868]
[1761916793608,0.71,187.5,187.46,18.95497287]
[1761916793919,0.71,187.5,187.46,19.62497287]
[1761916794727,3.33527127,187.52,187.46,22.96024414]
[1761916794932,4.04527127,187.52,187.46,22.96024414]
[1761916795719,0.71,187.51,187.46,22.96024414]
[1761916796813,0.71,187.51,187.46,19.62497287]
[1761916797605,0.71,187.51,187.46,18.95497287]
[1761916797807,0.71,187.51,187.47,0.67]
[1761916798631,0.71,187.51,187.48,5.33390228]
[1761916799823,0.71,187.51,187.47,18.6696538]
[1761916800230,3.33527127,187.52,187.48,0.7]
[1761916800432,4.04527127,187.51,187.47,5.3341868]
[1761916800633,3.33527127,187.48,187.44,47.0]
[1761916800934,3.33527127,187.45,187.4,0.7]
[1761916801318,4.04527127,187.45,187.4,0.7]
[1761916801514,4.04527127,187.45,187.41,5.33586171]
[1761916802114,4.04527127,187.45,187.41,6.03586171]
[1761916803022,3.33527127,187.45,187.41,5.33586171]
[1761916803212,3.33527127,187.45,187.4,13.34044234]
[1761916803213,3.33527127,187.43,187.39,5.33646405]
[1761916803535,4.04527127,187.43,187.39,19.37762419]
[1761916803828,0.71,187.42,187.39,18.67762419]
[1761916804029,4.04527127,187.43,187.39,18.67762419]
[1761916804333,4.04527127,187.43,187.39,19.37762419]
[1761916806033,29.99465866,187.56,187.39,19.37762419]
[1761916806034,0.71,187.51,187.43,0.28432314]
[1761916806226,0.71,187.51,187.47,3.33527127]
[1761916806425,4.04527127,187.51,187.44,0.7]
[1761916806731,3.33527127,187.5,187.45,0.28432314]
[1761916806917,3.33527127,187.51,187.46,5.33447135]
[1761916807118,0.71,187.5,187.46,22.005921]
[1761916807324,21.302,187.51,187.47,3.33527127]
[1761916807829,0.71,187.5,187.47,3.33527127]
[1761916808532,0.71,187.5,187.46,22.005921]
[1761916809532,0.71,187.5,187.46,13.33617838]
[1761916809737,3.90912612,187.51,187.46,17.37144965]
[1761916809925,4.61912612,187.51,187.46,17.37144965]
[1761916810236,0.71,187.51,187.47,3.33527127]
[1761916810540,4.62412816,187.5,187.47,3.33527127]
[1761916810729,0.71,187.5,187.48,5.33390228]
[1761916811114,4.62435459,187.5,187.48,5.33390228]
[1761916811316,20.792,187.53,187.5,0.28432314]
[1761916811317,0.2,187.53,187.5,0.28432314]
[1761916811531,0.2,187.53,187.52,3.33527127]
[1761916811837,0.2,187.53,187.52,3.61959441]
[1761916812025,0.2,187.53,187.52,4.31959441]
[1761916812430,0.2,187.53,187.52,14.1084221]
[1761916812631,0.2,187.53,187.52,19.4411866]
[1761916813216,0.2,187.53,187.52,16.10591533]
[1761916813552,0.2,187.53,187.52,19.4411866]
[1761916814725,0.2,187.53,187.52,40.0331866]
[1761916815321,0.1,187.54,187.53,10.07315083]
[1761916815516,0.1,187.54,187.53,14.64167011]
[1761916816536,0.1,187.54,187.53,35.23367011]
[1761916816744,1e-08,187.54,187.53,35.23367011]
[1761916817342,1e-08,187.54,187.53,40.56615024]
[1761916817743,1e-08,187.54,187.53,30.77732255]
[1761916818041,1e-08,187.54,187.53,40.56615024]
[1761916819743,1e-08,187.54,187.53,43.90142151]
[1761916819938,0.2,187.58,187.57,9.78882769]
[1761916820138,3.33527127,187.67,187.58,0.28432314]
[1761916820323,4.62709693,187.66,187.62,3.33527127]
[1761916820524,4.62709693,187.65,187.62,3.33527127]
[1761916820720,0.71,187.65,187.62,3.33527127]
[1761916820925,0.71,187.64,187.62,3.33527127]
[1761916821128,0.71,187.64,187.63,5.32963811]
[1761916821627,0.71,187.64,187.59,0.14216157]
[1761916821828,4.04527127,187.64,187.59,0.14216157]
[1761916822349,0.7,187.63,187.59,0.28432314]
[1761916822760,3.33527127,187.62,187.58,5.33105874]
[1761916823057,0.7,187.61,187.58,5.33105874]
[1761916823237,0.7,187.61,187.57,5.6156661]
[1761916824059,0.7,187.61,187.57,8.95093737]
[1761916824555,3.33527127,187.59,187.55,5.33171543]
[1761916824944,0.7,187.58,187.55,5.33171543]
[1761916825339,0.7,187.58,187.54,5.33219579]
[1761916825656,0.7,187.6,187.56,3.33527127]
[1761916825955,4.03527127,187.6,187.56,0.28432314]
[1761916826340,0.7,187.59,187.56,0.28432314]
[1761916826571,0.7,187.59,187.55,3.33527127]
[1761916827246,4.03527127,187.59,187.55,0.28432314]
[1761916827441,4.03527127,187.59,187.55,5.61623323]
[1761916827648,0.7,187.58,187.55,5.61623323]
[1761916830136,0.7,187.58,187.55,22.28128322]
[1761916830329,0.63473076,187.63,187.56,0.96432314]
[1761916830552,0.63473076,187.63,187.56,3.61959441]
[1761916830553,3.99527127,187.62,187.56,3.61959441]
[1761916830741,3.99527127,187.62,187.56,0.28432314]
[1761916830941,0.66,187.61,187.56,3.61959441]
[1761916831140,0.66,187.61,187.58,3.33527127]
[1761916832544,0.66,187.61,187.59,5.33077456]
[1761916833544,20.592,187.64,187.6,4.29959441]
[1761916833748,0.66,187.64,187.62,3.33527127]
[1761916833944,0.66,187.64,187.61,3.33527127]
[1761916834544,0.66,187.64,187.62,5.32992218]
[1761916835045,0.66,187.64,187.62,8.66519345]
[1761916835245,0.66,187.64,187.62,5.32992218]
[1761916835645,0.66,187.64,187.61,5.33020627]
[1761916841864,0.66,187.64,187.6,21.07255292]
[1761916842064,0.66,187.64,187.6,21.75255292]
[1761916842656,2.79151337,187.66,187.61,2.13151337]
[1761916842951,0.66,187.66,187.62,2.13151337]
[1761916843147,0.66,187.66,187.63,2.13151337]
[1761916843351,0.1,187.7,187.65,2.13151337]
[1761916843665,0.1,187.7,187.68,2.13151337]
[1761916843978,0.1,187.7,187.69,5.32793435]
[1761916847561,0.1,187.7,187.69,18.21259855]
[1761916848061,0.1,187.7,187.69,5.61225749]
[1761916849384,1e-08,187.7,187.69,8.95656429]
[1761916850385,1e-08,187.7,187.69,6.29225749]
[1761916850887,1e-08,187.7,187.69,8.42377086]
[1761916853475,1e-08,187.7,187.69,6.29225749]
[1761916853671,1e-08,187.7,187.69,8.42377086]
[1761916854360,1e-08,187.7,187.69,7.74377086]
[1761916854560,1e-08,187.7,187.69,7.60160929]
[1761916854977,1e-08,187.7,187.69,8.42377086]
[1761916855674,1e-08,187.7,187.69,7.74377086]
[1761916856066,1e-08,187.7,187.69,8.42377086]
[1761916856569,1e-08,187.7,187.69,7.74377086]
[1761916856970,0.66000001,187.7,187.69,5.32793435]
[1761916857160,1e-08,187.7,187.69,5.32793435]
[1761916857675,1e-08,187.7,187.69,18.21259855]
[1761916862885,0.72,187.79,187.7,31.35515083]
[1761916863188,0.72,187.79,187.77,2.13151337]
[1761916863391,0.72,187.79,187.77,0.28432314]
[1761916863896,0.72,187.79,187.74,2.13151337]
[1761916864068,0.72,187.79,187.75,0.28432314]
[1761916865107,2.13151337,187.78,187.73,2.13151337]
[1761916865460,0.72,187.77,187.73,7.45831249]
[1761916867194,0.72,187.77,187.73,20.7753103]
[1761916867693,0.72,187.77,187.74,2.41583651]
[1761916868597,0.72,187.77,187.74,5.610606]
[1761916869600,0.72,187.77,187.74,18.92689448]
[1761916869812,0.72,187.77,187.74,21.05840785]
[1761916869995,0.72,187.8,187.76,2.13151337]
[1761916870596,0.72,187.8,187.77,5.32566437]
[1761916872489,0.72,187.8,187.77,20.77133868]
[1761916872691,0.72,187.82,187.78,2.13151337]
[1761916872894,22.82351337,187.83,187.78,2.13151337]
[1761916872895,0.72,187.81,187.78,2.13151337]
[1761916873480,0.72,187.81,187.79,2.13151337]
[1761916873686,0.72,187.81,187.78,0.28432314]
[1761916873886,0.72,187.81,187.79,2.13151337]
[1761916874212,0.72,187.81,187.78,2.41583651]
[1761916875506,0.72,187.81,187.79,5.32509718]
[1761916875893,20.692,187.83,187.79,5.32509718]
[1761916876102,20.692,187.83,187.76,5.32594801]
[1761916876103,0.72,187.8,187.76,5.32594801]
[1761916876422,2.13151337,187.79,187.76,5.32594801]
[1761916876709,2.13151337,187.79,187.75,5.61053362]
[1761916876883,0.72,187.78,187.75,0.28432314]
[1761916877291,0.63473076,187.82,187.75,3.10583651]
[1761916877491,0.72,187.8,187.77,5.32566437]
[1761916878190,0.63473076,187.82,187.79,2.13151337]
[1761916878410,0.66,187.82,187.78,0.28432314]
[1761916878613,0.66,187.82,187.8,2.13151337]
[1761916879114,0.66,187.82,187.79,2.13151337]
[1761916879410,0.66,187.82,187.8,2.13151337]
[1761916879615,0.66,187.82,187.79,7.45661055]
[1761916879814,0.1,187.83,187.8,2.13151337]
[1761916879999,4.16922084,187.97,187.83,9.78882769]
[1761916880321,1.99999999,188.08,187.83,9.78882769]
[1761916880322,3.92717988,188.03,187.94,20.592]
[1761916880622,3.93103511,188.02,187.97,9.78882769]
[1761916880819,0.63473076,188.1,187.97,9.78882769]
[1761916880820,0.66,188.08,187.99,20.592]
[1761916881119,0.66,188.08,187.98,1.00432314]
[1761916881120,0.66,188.07,188.0,10.07315083]
[1761916881633,0.66,188.07,188.04,20.592]
[1761916881932,0.66,188.07,188.05,2.13151337]
[1761916882097,0.66,188.07,188.04,22.72351337]
[1761916882301,0.66,188.07,188.04,20.592]
[1761916882696,0.66,188.07,188.04,22.72351337]
[1761916882996,0.66,188.07,188.04,20.592]
[1761916883206,0.66,188.07,188.05,2.13151337]
[1761916883397,0.66,188.07,188.05,5.40094244]
[1761916883609,0.66,188.07,188.03,0.28432314]
[1761916884120,6.06094244,188.07,187.98,20.592]
[1761916884415,5.40094244,188.06,187.99,15.47409327]
[1761916884616,6.06094244,188.06,187.95,12.44567451]
[1761916884913,0.66,188.05,188.01,9.93098926]
[1761916885088,0.66,188.05,188.02,0.14216157]
[1761916885287,0.66,188.05,188.04,5.68526558]
[1761916885517,0.66,188.05,188.04,0.28432314]
[1761916887309,0.66,188.05,187.99,10.50882769]
[1761916887310,0.66,188.05,188.02,0.14216157]
[1761916888190,0.66,188.05,188.01,0.14216157]
[1761916888597,20.592,188.06,188.03,5.40094244]
[1761916888821,6.06094244,188.08,188.03,5.40094244]
[1761916889028,3.5050828,188.07,188.03,5.40094244]
[1761916889222,0.72,188.07,188.05,5.40094244]
[1761916889428,0.72,188.07,188.01,0.97432314]
[1761916889429,3.50293723,188.06,188.01,0.97432314]
[1761916889745,0.72,188.07,188.05,0.28432314]
[1761916890045,26.50417675,188.12,188.05,0.28432314]
[1761916890046,3.50289145,188.06,188.05,0.28432314]
[1761916890322,5.12526478,188.11,188.07,0.28432314]
[1761916890524,3.50119097,188.1,188.07,0.28432314]
[1761916890836,8.90213341,188.09,188.04,0.28432314]
[1761916891137,4.22119097,188.08,188.04,0.28432314]
[1761916891322,3.50119097,188.07,188.04,5.68526558]
[1761916891509,4.40526478,188.05,188.04,0.28432314]
[1761916891708,7.90535111,188.05,188.04,5.68526558]
[1761916892613,7.90535111,188.05,188.04,0.28432314]
[1761916892614,3.50008633,188.05,188.04,0.28432314]
[1761916892801,3.50008633,188.05,188.01,6.00869809]
[1761916892802,4.22008633,188.05,188.01,5.40094244]
[1761916893005,4.22008633,188.04,188.01,5.40094244]
[1761916893212,3.49886589,188.03,187.99,9.78882769]
[1761916893505,3.49812514,188.02,188.01,5.54310401]
[1761916893727,3.49812514,188.02,188.01,5.68526558]
[1761916894425,3.49812514,188.02,187.97,10.47882769]
[1761916894426,14.93772885,188.02,187.9,5.85416047]
[1761916894627,14.93772885,188.02,187.79,47.0]
[1761916894628,4.3705707,187.93,187.88,0.53225463]
[1761916894854,5.40094244,187.89,187.88,4.40526478]
[1761916895009,5.40094244,187.89,187.81,5.40094244]
[1761916895010,8.89906758,187.89,187.81,5.40094244]
[1761916895206,5.40094244,187.86,187.78,6.01533808]
[1761916895400,3.49812514,187.85,187.81,5.40094244]
[1761916895618,0.72,187.86,187.81,5.40094244]
[1761916895944,3.49540558,187.85,187.82,5.40094244]
[1761916896139,3.49540558,187.84,187.81,5.40094244]
[1761916896343,3.49540558,187.83,187.81,5.40094244]
[1761916896534,0.72,187.86,187.81,5.40094244]
[1761916896707,3.49590317,187.85,187.8,10.72575607]
[1761916896908,3.49590317,187.84,187.81,5.40094244]
[1761916897233,24.96030963,187.88,187.83,5.40094244]
[1761916897234,20.592,187.88,187.83,5.40094244]
[1761916897436,3.49697867,187.87,187.82,0.14216157]
[1761916897620,3.49697867,187.86,187.83,0.14216157]
[1761916897816,3.49697867,187.85,187.82,9.78882769]
[1761916898016,6.12094244,187.87,187.82,9.78882769]
[1761916898017,3.49697867,187.84,187.82,15.11297272]
[1761916898221,3.49697867,187.83,187.79,0.69]
[1761916898423,3.49907857,187.82,187.8,9.78882769]
[1761916898608,6.12094244,187.85,187.8,9.78882769]
[1761916898815,5.40094244,187.83,187.78,9.78882769]
[1761916899023,3.49914501,187.82,187.79,0.28432314]
[1761916899225,3.49914501,187.81,187.8,10.07315083]
[1761916899435,3.49914501,187.81,187.8,15.47409327]
[1761916899738,9.76925207,187.87,187.8,16.16409327]
[1761916899940,3.49996986,187.86,187.84,5.32367972]
[1761916900156,3.49996986,187.85,187.84,15.39683055]
[1761916900640,3.49996986,187.85,187.83,0.69]
[1761916900641,0.72,187.88,187.83,0.28432314]
[1761916900934,3.50054882,187.87,187.83,0.28432314]
[1761916901116,3.50054882,187.86,187.83,0.28432314]
[1761916901318,0.72,187.88,187.83,5.68526558]
[1761916901638,0.72,187.88,187.82,9.78882769]
[1761916901639,3.50158143,187.87,187.82,9.78882769]
[1761916901824,3.50158143,187.86,187.8,9.93098926]
[1761916902029,8.90252387,187.85,187.81,5.32453011]
[1761916902230,3.50158143,187.84,187.83,15.47409327]
[1761916902626,3.50158143,187.84,187.83,16.16409327]
[1761916903547,4.36830963,187.89,187.84,10.07315083]
[1761916903730,21.312,187.9,187.85,8.22377152]
[1761916903731,3.50669663,187.88,187.85,8.22377152]
[1761916903923,3.50669663,187.87,187.84,14.52149345]
[1761916904116,3.50669663,187.86,187.84,14.52149345]
[1761916904320,21.312,187.9,187.85,8.91377152]
[1761916904537,3.50773463,187.89,187.85,8.91377152]
[1761916904738,3.50773463,187.88,187.85,8.91377152]
[1761916904945,0.63473076,187.93,187.85,8.91377152]
[1761916904946,13.31208115,187.93,187.87,8.22377152]
[1761916905153,3.50854112,187.92,187.87,8.22377152]
[1761916905447,3.50854112,187.91,187.87,8.22377152]
[1761916905749,3.50854112,187.9,187.87,0.28432314]
[1761916905921,3.50854112,187.89,187.86,9.78882769]
[1761916906247,3.50854112,187.88,187.85,15.39652239]
[1761916906432,3.50854112,187.87,187.85,24.31029391]
[1761916906633,0.72,187.91,187.85,24.31029391]
[1761916907147,21.312,187.91,187.85,24.31029391]
[1761916907751,0.72,187.91,187.86,13.5466247]
[1761916908252,0.72,187.91,187.86,14.2366247]
[1761916908746,0.72,187.91,187.86,13.5466247]
[1761916908975,0.63473076,187.93,187.86,13.5466247]
[1761916908976,0.63473076,187.93,187.87,0.97432314]
[1761916909130,8.22377152,187.95,187.88,8.22377152]
[1761916909466,8.94377152,187.94,187.88,8.22377152]
[1761916909623,8.22377152,187.93,187.88,9.78882769]
[1761916909950,8.22377152,187.91,187.87,10.07315083]
[1761916910129,0.72,187.9,187.86,15.11168087]
[1761916910725,0.72,187.9,187.86,23.33545239]
[1761916911456,0.72,187.9,187.86,15.11168087]
[1761916911862,0.72,187.9,187.84,0.69]
[1761916911863,8.94377152,187.9,187.84,5.32340893]
[1761916912157,8.94377152,187.9,187.82,5.32403324]
[1761916912158,8.22377152,187.86,187.82,5.32403324]
[1761916912358,4.1494215,187.89,187.82,5.32403324]
[1761916912359,8.22377152,187.85,187.82,5.32403324]
[1761916912664,8.22377152,187.86,187.82,5.32403324]
[1761916912856,3.51311711,187.85,187.82,5.32403324]
[1761916913157,0.72,187.85,187.82,5.32403324]
[1761916913456,20.592,187.87,187.82,6.01403324]
[1761916913655,3.51423776,187.86,187.82,5.32403324]
[1761916913854,0.72,187.86,187.82,5.32403324]
[1761916914061,0.72,187.86,187.82,13.54780476]
[1761916914243,8.22377152,187.88,187.83,0.28432314]
[1761916914562,8.22377152,187.92,187.86,8.22377152]
[1761916914855,8.94377152,187.93,187.88,13.5460783]
[1761916915542,8.22377152,187.93,187.88,8.22377152]
[1761916915741,8.94377152,187.92,187.87,0.28432314]
[1761916915935,8.22377152,187.91,187.87,5.60689549]
[1761916916146,8.94377152,187.91,187.87,5.60689549]
[1761916916538,26.54759093,187.94,187.87,5.60689549]
[1761916916747,8.22377152,187.92,187.87,14.52066701]
[1761916916945,8.22377152,187.92,187.87,13.83066701]
[1761916917150,0.72,187.91,187.87,13.83066701]
[1761916917460,8.94377152,187.92,187.87,14.52066701]
[1761916917968,0.72,187.91,187.88,5.32239054]
[1761916918840,8.94377152,187.91,187.86,5.32298546]
[1761916919064,8.22377152,187.9,187.85,0.28432314]
[1761916919358,8.91377152,187.9,187.85,0.28432314]
[1761916919537,8.91377152,187.89,187.85,0.28432314]
[1761916919737,0.69,187.89,187.85,0.28432314]
[1761916919934,8.22377152,187.9,187.85,13.83136216]
[1761916920148,0.69,187.9,187.85,13.83136216]
[1761916920337,21.282,187.94,187.89,8.22377152]
[1761916920537,21.282,187.94,187.9,8.22377152]
[1761916920538,20.592,187.93,187.9,8.22377152]
[1761916920736,27.76458781,188.0,187.86,10.63098926]
[1761916920737,14.46609292,188.0,187.92,8.22377152]
[1761916920949,8.91377152,188.0,187.94,8.22377152]
[1761916921163,8.91377152,187.99,187.94,8.22377152]
[1761916921456,8.91377152,187.99,187.93,8.50809466]
[1761916921859,14.23331749,187.99,187.93,8.50809466]
[1761916922043,9.54850228,187.98,187.91,5.32169655]
[1761916922244,8.22377152,187.97,187.92,8.22377152]
[1761916922557,8.22377152,187.96,187.91,5.32169655]
[1761916922949,8.22377152,187.97,187.91,14.24546807]
[1761916923145,8.22377152,187.94,187.89,10.07315083]
[1761916923353,8.22377152,187.94,187.89,0.28432314]
[1761916923567,0.69,187.93,187.89,5.60655953]
[1761916923756,8.91377152,187.94,187.89,6.30655953]
[1761916923964,8.91377152,187.94,187.9,8.22377152]
[1761916923965,0.69,187.94,187.9,8.22377152]
[1761916924144,8.22377152,187.95,187.9,8.22377152]
[1761916924344,0.69,187.95,187.9,8.92377152]
[1761916924540,20.592,187.96,187.91,8.22377152]
[1761916924753,8.91377152,187.98,187.91,0.98432314]
[1761916924956,8.22377152,187.97,187.91,8.50809466]
[1761916925166,8.22377152,187.97,187.89,13.54600791]
[1761916925167,8.22377152,187.95,187.89,13.54600791]
[1761916925341,0.63473076,187.96,187.89,5.32223639]
[1761916925342,8.91377152,187.94,187.89,5.32223639]
[1761916925553,8.22377152,187.94,187.89,5.32223639]
[1761916925753,21.91673076,187.96,187.9,0.7]
[1761916925936,4.36830963,187.94,187.93,13.54490172]
[1761916926142,3.52389661,187.94,187.93,13.54490172]
[1761916926759,3.52389661,187.94,187.93,14.24490172]
[1761916926957,29.45050228,187.99,187.93,14.24490172]
[1761916927154,3.52383356,187.98,187.93,14.24490172]
[1761916927352,3.52383356,187.97,187.93,14.24490172]
[1761916927554,3.52383356,187.96,187.93,5.3211302]
[1761916927749,3.52383356,187.95,187.93,5.3211302]
[1761916927958,8.91377152,187.97,187.92,0.28432314]
[1761916928160,8.91377152,187.97,187.9,10.07315083]
[1761916928161,8.22377152,187.95,187.9,0.28432314]
[1761916928362,3.52473269,187.94,187.9,0.28432314]
[1761916928574,0.69,187.95,187.9,0.98432314]
[1761916928757,3.52356333,187.94,187.9,0.98432314]
[1761916928956,3.52386162,187.93,187.9,0.98432314]
[1761916929161,3.52386162,187.92,187.91,0.7]
[1761916929362,3.52523993,187.92,187.91,9.20809466]
[1761916930474,3.52523993,187.92,187.91,0.7]
[1761916930686,4.21523993,187.92,187.88,52.32240465]
[1761916930849,8.22377152,187.9,187.85,9.68832428]
[1761916931052,8.22377152,187.88,187.84,5.32361182]
[1761916931271,8.22377152,187.88,187.81,6.02450444]
[1761916931272,8.22377152,187.86,187.81,6.02450444]
[1761916931461,11.74901145,187.85,187.81,5.32450444]
[1761916931670,3.52523993,187.84,187.81,5.32450444]
[1761916931859,11.74901145,187.83,187.78,8.22377152]
[1761916932175,3.52523993,187.82,187.79,8.92377152]
[1761916932369,8.91377152,187.85,187.8,5.32481363]
[1761916932579,11.75257952,187.84,187.8,5.32481363]
[1761916932879,11.75257952,187.84,187.78,0.28432314]
[1761916932880,11.75257952,187.83,187.78,0.28432314]
[1761916933048,8.22377152,187.82,187.77,9.78882769]
[1761916933248,8.22377152,187.8,187.76,9.60943642]
[1761916933464,8.22377152,187.81,187.76,9.60943642]
[1761916933667,21.282,187.83,187.77,0.28432314]
[1761916933970,11.75397619,187.82,187.77,0.28432314]
[1761916934196,8.22377152,187.82,187.76,17.83320794]
[1761916934354,28.81577152,187.84,187.78,18.01259921]
[1761916934552,3.53027045,187.83,187.79,0.14216157]
[1761916934781,8.22377152,187.85,187.79,8.36593309]
[1761916934988,11.75460859,187.84,187.79,0.28432314]